[Event "*** Titled Tuesday Blitz"]
[Site "Chess.com"]
[Date "2019.06.04"]
[Round "5"]
[White "x-5963514717"]
[Black "26andrej26"]
[Result "1-0"]
[WhiteElo "2492"]
[BlackElo "2507"]
[TimeControl "180+2"]
[EndTime "14:02:49 PDT"]
[Termination "x-5963514717 won by resignation"]

1. Nf3 {[%clk 0:02:58.2]} 1... Nf6 {[%clk 0:03:00.7]} 2. g3 {[%clk 0:02:59.6]}
2... g6 {[%clk 0:03:00.4]} 3. Bg2 {[%clk 0:03:01.5]} 3... Bg7 {[%clk 0:03:01.2]}
4. O-O {[%clk 0:03:01.9]} 4... O-O {[%clk 0:03:02.8]} 5. d4 {[%clk 0:03:03.7]}
5... d6 {[%clk 0:03:02.9]} 6. b3 {[%clk 0:03:05]} 6... a5 {[%clk 0:03:03.6]} 7.
Bb2 {[%clk 0:02:52.8]} 7... a4 {[%clk 0:03:04.4]} 8. c4 {[%clk 0:02:52.5]} 8...
axb3 {[%clk 0:03:04.9]} 9. axb3 {[%clk 0:02:51.7]} 9... Rxa1 {[%clk 0:03:05.8]}
10. Bxa1 {[%clk 0:02:53.6]} 10... d5 {[%clk 0:03:07.3]} 11. cxd5 {[%clk
0:02:40.7]} 11... Qxd5 {[%clk 0:03:06.3]} 12. Ne5 {[%clk 0:02:40.3]} 12... Qd8
{[%clk 0:03:05.3]} 13. Nd2 {[%clk 0:02:39.5]} 13... Nd5 {[%clk 0:02:59.8]} 14.
Ndc4 {[%clk 0:02:34.3]} 14... b5 {[%clk 0:02:54]} 15. Na5 {[%clk 0:02:14.1]}
15... Qd6 {[%clk 0:02:13.8]} 16. Qd2 {[%clk 0:02:11.2]} 16... Rd8 {[%clk
0:02:00]} 17. Rc1 {[%clk 0:02:11.3]} 17... Be6 {[%clk 0:01:52]} 18. Nb7 {[%clk
0:02:09.5]} 18... Qb6 {[%clk 0:01:01.1]} 19. Nxd8 {[%clk 0:02:08.7]} 1-0

[Event "*** Titled Tuesday Blitz"]
[Site "Chess.com"]
[Date "2019.06.04"]
[Round "5"]
[White "Ginger_GM"]
[Black "Meharchinnareddy"]
[Result "1-0"]
[WhiteElo "2552"]
[BlackElo "2631"]
[TimeControl "180+2"]
[EndTime "14:03:05 PDT"]
[Termination "Ginger_GM won by resignation"]

1. d4 {[%clk 0:03:01.9]} 1... d5 {[%clk 0:03:00.6]} 2. c4 {[%clk 0:03:02]} 2...
c6 {[%clk 0:03:02.1]} 3. Nc3 {[%clk 0:03:02.3]} 3... Nf6 {[%clk 0:03:03.5]} 4.
Nf3 {[%clk 0:03:01.7]} 4... a6 {[%clk 0:03:02.5]} 5. Qc2 {[%clk 0:02:47.2]} 5...
g6 {[%clk 0:03:00.4]} 6. Bf4 {[%clk 0:02:42.6]} 6... Bg7 {[%clk 0:03:01.7]} 7.
e3 {[%clk 0:02:35.2]} 7... O-O {[%clk 0:02:59.9]} 8. cxd5 {[%clk 0:02:33.1]}
8... cxd5 {[%clk 0:03:00.7]} 9. Bd3 {[%clk 0:02:33.8]} 9... Nc6 {[%clk
0:03:02.2]} 10. a3 {[%clk 0:02:33.7]} 10... Bg4 {[%clk 0:03:03.1]} 11. Ne5
{[%clk 0:02:33.9]} 11... Rc8 {[%clk 0:03:01.7]} 12. O-O {[%clk 0:02:30.4]} 12...
Be6 {[%clk 0:03:02]} 13. Rac1 {[%clk 0:02:25.2]} 13... Nd7 {[%clk 0:03:02]} 14.
Nxd7 {[%clk 0:02:13.5]} 14... Bxd7 {[%clk 0:03:03.9]} 15. Qb3 {[%clk 0:01:58.4]}
15... e6 {[%clk 0:02:57.1]} 16. Qxb7 {[%clk 0:01:51.7]} 16... Na5 {[%clk
0:02:57.8]} 17. Qb4 {[%clk 0:01:43.1]} 17... Nc4 {[%clk 0:02:56.9]} 18. Bxc4
{[%clk 0:01:37.5]} 18... Rxc4 {[%clk 0:02:58.8]} 19. Qd6 {[%clk 0:01:28.1]}
19... Qc8 {[%clk 0:02:53.5]} 20. Na2 {[%clk 0:01:08.1]} 20... Bb5 {[%clk
0:02:51.3]} 21. Rxc4 {[%clk 0:01:04.5]} 21... Qxc4 {[%clk 0:02:53.2]} 22. Ra1
{[%clk 0:01:01.5]} 22... Rc8 {[%clk 0:02:53.8]} 23. h4 {[%clk 0:00:59.3]} 23...
Qb3 {[%clk 0:02:53.8]} 24. Qb4 {[%clk 0:00:59.3]} 24... Qc2 {[%clk 0:02:45]} 25.
Rc1 {[%clk 0:00:58]} 25... Qxc1+ {[%clk 0:02:46]} 26. Nxc1 {[%clk 0:00:59]}
26... Rxc1+ {[%clk 0:02:47.9]} 27. Kh2 {[%clk 0:01:00.5]} 27... Bf8 {[%clk
0:02:48.5]} 28. Qa5 {[%clk 0:00:43.3]} 28... Rc2 {[%clk 0:02:49.3]} 29. Qd8
{[%clk 0:00:43]} 1-0

[Event "*** Titled Tuesday Blitz"]
[Site "Chess.com"]
[Date "2019.06.04"]
[Round "5"]
[White "Barcelona_Guy"]
[Black "JozefKneht"]
[Result "1-0"]
[WhiteElo "2689"]
[BlackElo "2511"]
[TimeControl "180+2"]
[EndTime "14:03:16 PDT"]
[Termination "Barcelona_Guy won by checkmate"]

1. d4 {[%clk 0:03:01.9]} 1... d5 {[%clk 0:03:00]} 2. c4 {[%clk 0:03:02.8]} 2...
c6 {[%clk 0:03:00.4]} 3. Nf3 {[%clk 0:03:02.5]} 3... Nf6 {[%clk 0:03:00.4]} 4.
e3 {[%clk 0:03:04]} 4... Bf5 {[%clk 0:03:00.2]} 5. Nc3 {[%clk 0:03:03.6]} 5...
e6 {[%clk 0:03:00.6]} 6. Nh4 {[%clk 0:03:04.5]} 6... Bg6 {[%clk 0:02:54.4]} 7.
Nxg6 {[%clk 0:03:03.8]} 7... hxg6 {[%clk 0:02:56.3]} 8. Be2 {[%clk 0:03:05.5]}
8... Nbd7 {[%clk 0:02:53.4]} 9. O-O {[%clk 0:03:05.4]} 9... Bd6 {[%clk
0:02:52.9]} 10. g3 {[%clk 0:03:07]} 10... Qe7 {[%clk 0:02:52.2]} 11. Rb1 {[%clk
0:03:01.1]} 11... O-O {[%clk 0:02:33]} 12. c5 {[%clk 0:03:01.7]} 12... Bc7
{[%clk 0:02:32.6]} 13. f4 {[%clk 0:03:03.3]} 13... b6 {[%clk 0:02:26.3]} 14. b4
{[%clk 0:03:04.1]} 14... a5 {[%clk 0:02:25.4]} 15. a3 {[%clk 0:03:02.1]} 15...
axb4 {[%clk 0:02:25.8]} 16. axb4 {[%clk 0:03:03.2]} 16... bxc5 {[%clk
0:02:26.8]} 17. bxc5 {[%clk 0:03:04.6]} 17... Rfb8 {[%clk 0:02:26.4]} 18. Bd2
{[%clk 0:03:05.4]} 18... Ne4 {[%clk 0:01:45]} 19. Nxe4 {[%clk 0:03:05.9]} 19...
dxe4 {[%clk 0:01:46.9]} 20. Qc2 {[%clk 0:02:56.8]} 20... f5 {[%clk 0:01:47.4]}
21. Bc4 {[%clk 0:02:52]} 21... Nf6 {[%clk 0:01:48.1]} 22. Rxb8+ {[%clk
0:02:49.8]} 22... Rxb8 {[%clk 0:01:47.7]} 23. Rb1 {[%clk 0:02:51.6]} 23... Nd5
{[%clk 0:01:45.5]} 24. Rxb8+ {[%clk 0:02:50.5]} 24... Bxb8 {[%clk 0:01:47.4]}
25. Qa4 {[%clk 0:02:51.9]} 25... Qa7 {[%clk 0:01:19.7]} 26. Qxc6 {[%clk
0:02:47.3]} 26... Qa1+ {[%clk 0:01:19.5]} 27. Kg2 {[%clk 0:02:37.2]} 27... Qb2
{[%clk 0:01:19.2]} 28. Qxe6+ {[%clk 0:02:38.2]} 28... Kh7 {[%clk 0:01:18.7]} 29.
Bxd5 {[%clk 0:02:39.3]} 29... Qxd2+ {[%clk 0:01:19]} 30. Kh3 {[%clk 0:02:40.8]}
30... Kh6 {[%clk 0:01:02.5]} 31. Qg8 {[%clk 0:02:39.3]} 31... g5 {[%clk
0:01:03.4]} 32. fxg5+ {[%clk 0:02:31.8]} 32... Kxg5 {[%clk 0:00:56.8]} 33. Qxg7+
{[%clk 0:02:32.6]} 33... Kh5 {[%clk 0:00:58.4]} 34. Bf7# {[%clk 0:02:34.4]} 1-0

[Event "*** Titled Tuesday Blitz"]
[Site "Chess.com"]
[Date "2019.06.04"]
[Round "5"]
[White "TonRicher"]
[Black "RitvarsReimanis"]
[Result "1/2-1/2"]
[WhiteElo "2370"]
[BlackElo "2621"]
[TimeControl "180+2"]
[EndTime "14:03:27 PDT"]
[Termination "Game drawn by agreement"]

1. d4 {[%clk 0:03:00.5]} 1... e6 {[%clk 0:03:00.6]} 2. Nf3 {[%clk 0:03:00.6]}
2... d5 {[%clk 0:03:02]} 3. c4 {[%clk 0:03:01.4]} 3... c6 {[%clk 0:03:02.9]} 4.
e3 {[%clk 0:02:57.4]} 4... f5 {[%clk 0:03:04]} 5. Nc3 {[%clk 0:02:57.7]} 5...
Nf6 {[%clk 0:03:04.5]} 6. Bd3 {[%clk 0:02:57]} 6... Bd6 {[%clk 0:03:05.7]} 7.
Qc2 {[%clk 0:02:51]} 7... Ne4 {[%clk 0:03:06.5]} 8. Ne2 {[%clk 0:02:37.1]} 8...
O-O {[%clk 0:03:06.6]} 9. a3 {[%clk 0:02:34]} 9... Nd7 {[%clk 0:03:07.3]} 10. b4
{[%clk 0:02:32.3]} 10... a6 {[%clk 0:03:07.5]} 11. Bb2 {[%clk 0:02:32.9]} 11...
Qf6 {[%clk 0:03:07.9]} 12. g3 {[%clk 0:01:56.3]} 12... g5 {[%clk 0:03:07.9]} 13.
h4 {[%clk 0:01:56.1]} 13... g4 {[%clk 0:03:08.7]} 14. Nd2 {[%clk 0:01:46.9]}
14... h5 {[%clk 0:03:00.4]} 15. Nf4 {[%clk 0:01:47.2]} 15... Bxf4 {[%clk
0:03:01]} 16. exf4 {[%clk 0:01:35.1]} 16... Nd6 {[%clk 0:02:56.4]} 17. O-O
{[%clk 0:01:33.5]} 17... Qf7 {[%clk 0:02:51.7]} 18. Rfe1 {[%clk 0:01:33.4]}
18... Nf6 {[%clk 0:02:52.9]} 19. f3 {[%clk 0:01:32.1]} 19... Bd7 {[%clk
0:02:51.4]} 20. Kh2 {[%clk 0:01:32.7]} 20... b5 {[%clk 0:02:44.8]} 21. c5 {[%clk
0:01:33.5]} 21... Nc4 {[%clk 0:02:44.1]} 22. Nxc4 {[%clk 0:01:33]} 22... dxc4
{[%clk 0:02:45.5]} 23. Be2 {[%clk 0:01:32.5]} 23... Nd5 {[%clk 0:02:43.5]} 24.
fxg4 {[%clk 0:01:28.8]} 24... hxg4 {[%clk 0:02:42]} 25. Bf1 {[%clk 0:01:27.6]}
25... Rae8 {[%clk 0:02:37.1]} 26. Bg2 {[%clk 0:01:28.4]} 26... Qg6 {[%clk
0:02:25]} 27. Re5 {[%clk 0:01:21.5]} 27... Kf7 {[%clk 0:02:25.9]} 28. Rae1
{[%clk 0:01:21.5]} 28... Rh8 {[%clk 0:02:26.9]} 29. Kg1 {[%clk 0:01:21.6]} 29...
Rhf8 {[%clk 0:02:19.3]} 30. Kf2 {[%clk 0:01:19.7]} 30... Rc8 {[%clk 0:02:19.8]}
31. Rh1 {[%clk 0:01:16.7]} 31... Rh8 {[%clk 0:02:16.6]} 32. Bc1 {[%clk
0:01:15.6]} 32... Ra8 {[%clk 0:02:16.6]} 33. Bxd5 {[%clk 0:01:13.3]} 33... cxd5
{[%clk 0:02:17.7]} 34. Bd2 {[%clk 0:01:12.5]} 1/2-1/2

[Event "*** Titled Tuesday Blitz"]
[Site "Chess.com"]
[Date "2019.06.04"]
[Round "5"]
[White "riconaipe"]
[Black "Borsuk_Konstantin"]
[Result "1-0"]
[WhiteElo "2583"]
[BlackElo "2592"]
[TimeControl "180+2"]
[EndTime "14:03:51 PDT"]
[Termination "riconaipe won on time"]

1. d4 {[%clk 0:03:01.7]} 1... Nf6 {[%clk 0:03:00.3]} 2. c4 {[%clk 0:02:48.4]}
2... e6 {[%clk 0:03:00.8]} 3. Nc3 {[%clk 0:02:49.7]} 3... Bb4 {[%clk 0:03:01.3]}
4. Nf3 {[%clk 0:02:51.3]} 4... b6 {[%clk 0:03:01.7]} 5. Bg5 {[%clk 0:02:51.2]}
5... h6 {[%clk 0:03:02.3]} 6. Bh4 {[%clk 0:02:50.7]} 6... Bb7 {[%clk 0:03:03]}
7. Nd2 {[%clk 0:02:51]} 7... O-O {[%clk 0:02:59.6]} 8. e3 {[%clk 0:02:51.1]}
8... d6 {[%clk 0:02:53.8]} 9. f3 {[%clk 0:02:49.7]} 9... Nbd7 {[%clk 0:02:53.7]}
10. Bd3 {[%clk 0:02:49.4]} 10... Bxc3 {[%clk 0:02:45.2]} 11. bxc3 {[%clk
0:02:49.8]} 11... Qe8 {[%clk 0:02:45.8]} 12. O-O {[%clk 0:02:50]} 12... e5
{[%clk 0:02:42.6]} 13. Qc2 {[%clk 0:02:48.8]} 13... g6 {[%clk 0:02:34]} 14. Rae1
{[%clk 0:02:46.8]} 14... Kg7 {[%clk 0:02:34.6]} 15. e4 {[%clk 0:02:45.8]} 15...
Nh5 {[%clk 0:02:32.3]} 16. Bg3 {[%clk 0:02:42.4]} 16... g5 {[%clk 0:02:06.8]}
17. Rf2 {[%clk 0:02:40]} 17... Ndf6 {[%clk 0:01:38.6]} 18. Nf1 {[%clk
0:02:40.7]} 18... Bc8 {[%clk 0:01:28.9]} 19. Ne3 {[%clk 0:02:41.7]} 19... Kh7
{[%clk 0:01:15.8]} 20. Nd5 {[%clk 0:02:38.4]} 20... Nxd5 {[%clk 0:00:30.4]} 21.
cxd5 {[%clk 0:02:36.9]} 21... f6 {[%clk 0:00:25.8]} 22. c4 {[%clk 0:02:34]}
22... exd4 {[%clk 0:00:24.1]} 23. e5+ {[%clk 0:02:34.4]} 23... f5 {[%clk
0:00:21.1]} 24. Rfe2 {[%clk 0:02:28.7]} 24... Nxg3 {[%clk 0:00:03.8]} 25. hxg3
{[%clk 0:02:30.6]} 25... Qg6 {[%clk 0:00:03.9]} 26. g4 {[%clk 0:02:25.5]} 1-0

[Event "*** Titled Tuesday Blitz"]
[Site "Chess.com"]
[Date "2019.06.04"]
[Round "5"]
[White "LiamVrolijk"]
[Black "LastHeroJr"]
[Result "1-0"]
[WhiteElo "2741"]
[BlackElo "2509"]
[TimeControl "180+2"]
[EndTime "14:04:08 PDT"]
[Termination "LiamVrolijk won by resignation"]

1. c4 {[%clk 0:03:01.8]} 1... e5 {[%clk 0:02:59.6]} 2. Nc3 {[%clk 0:03:02.8]}
2... Nf6 {[%clk 0:03:01.2]} 3. Nf3 {[%clk 0:03:03.3]} 3... Nc6 {[%clk
0:03:02.7]} 4. g3 {[%clk 0:03:04.8]} 4... d5 {[%clk 0:03:03.2]} 5. cxd5 {[%clk
0:03:06.7]} 5... Nxd5 {[%clk 0:03:05.1]} 6. Bg2 {[%clk 0:03:08.3]} 6... Nb6
{[%clk 0:03:06.7]} 7. O-O {[%clk 0:03:09.1]} 7... Be7 {[%clk 0:03:08.3]} 8. d3
{[%clk 0:03:10.6]} 8... O-O {[%clk 0:03:09.9]} 9. Be3 {[%clk 0:03:12.2]} 9...
Re8 {[%clk 0:03:09.3]} 10. Rc1 {[%clk 0:03:13.2]} 10... Bf8 {[%clk 0:03:09.8]}
11. Ne4 {[%clk 0:03:11.4]} 11... Nd4 {[%clk 0:03:08.6]} 12. Bxd4 {[%clk
0:03:05.2]} 12... exd4 {[%clk 0:03:10.5]} 13. Nfd2 {[%clk 0:03:04.6]} 13... c6
{[%clk 0:03:04.2]} 14. Nb3 {[%clk 0:03:00.9]} 14... a5 {[%clk 0:02:52.4]} 15.
Nbc5 {[%clk 0:03:00.7]} 15... Re5 {[%clk 0:02:37.1]} 16. f4 {[%clk 0:02:54.7]}
16... Re8 {[%clk 0:02:38]} 17. f5 {[%clk 0:02:55.2]} 17... Nd5 {[%clk
0:02:32.2]} 18. Qd2 {[%clk 0:02:48.4]} 18... Ne3 {[%clk 0:02:32.6]} 19. f6
{[%clk 0:02:49.6]} 19... Nxf1 {[%clk 0:02:26.8]} 20. Rxf1 {[%clk 0:02:51.5]}
20... g6 {[%clk 0:02:16.7]} 21. Rf4 {[%clk 0:02:38.5]} 21... a4 {[%clk
0:02:11.6]} 22. Rh4 {[%clk 0:02:27.6]} 22... b6 {[%clk 0:02:07]} 23. Qf4 {[%clk
0:02:23.4]} 23... h5 {[%clk 0:01:13.1]} 24. Rxh5 {[%clk 0:02:23.5]} 24... bxc5
{[%clk 0:00:31.3]} 25. Qh4 {[%clk 0:02:15.3]} 25... gxh5 {[%clk 0:00:28.1]} 26.
Qg5+ {[%clk 0:02:15]} 26... Kh7 {[%clk 0:00:24.3]} 27. Qxh5+ {[%clk 0:02:15.3]}
27... Bh6 {[%clk 0:00:16.8]} 28. Ng5+ {[%clk 0:02:15.7]} 1-0

[Event "*** Titled Tuesday Blitz"]
[Site "Chess.com"]
[Date "2019.06.04"]
[Round "5"]
[White "MarcoRiehle"]
[Black "Muracle"]
[Result "0-1"]
[WhiteElo "2532"]
[BlackElo "2560"]
[TimeControl "180+2"]
[EndTime "14:04:10 PDT"]
[Termination "Muracle won by resignation"]

1. e4 {[%clk 0:03:01.9]} 1... c5 {[%clk 0:02:55.4]} 2. Nf3 {[%clk 0:02:59.8]}
2... Nc6 {[%clk 0:02:55.3]} 3. d4 {[%clk 0:03:00.5]} 3... cxd4 {[%clk
0:02:56.4]} 4. Nxd4 {[%clk 0:03:02.3]} 4... e5 {[%clk 0:02:57.9]} 5. Nb5 {[%clk
0:03:01.7]} 5... d6 {[%clk 0:02:56.8]} 6. c4 {[%clk 0:03:01.6]} 6... a6 {[%clk
0:02:56.8]} 7. N5c3 {[%clk 0:02:53.8]} 7... Be7 {[%clk 0:02:57.7]} 8. Na3 {[%clk
0:02:48.2]} 8... f5 {[%clk 0:02:58.3]} 9. exf5 {[%clk 0:02:47.6]} 9... Bxf5
{[%clk 0:02:59]} 10. Bd3 {[%clk 0:02:48.7]} 10... Be6 {[%clk 0:02:59.9]} 11. O-O
{[%clk 0:02:46]} 11... Nf6 {[%clk 0:03:00.1]} 12. Be3 {[%clk 0:02:46.2]} 12...
O-O {[%clk 0:02:59.3]} 13. Nd5 {[%clk 0:02:46.8]} 13... e4 {[%clk 0:02:45.5]}
14. Bc2 {[%clk 0:02:19.9]} 14... Bxd5 {[%clk 0:02:40.5]} 15. cxd5 {[%clk
0:02:18.7]} 15... Ne5 {[%clk 0:02:42]} 16. Qd4 {[%clk 0:02:13.8]} 16... Qd7
{[%clk 0:02:14.9]} 17. Rac1 {[%clk 0:02:05.7]} 17... Qg4 {[%clk 0:02:14.3]} 18.
Bd1 {[%clk 0:01:56.3]} 18... Qg6 {[%clk 0:02:12.2]} 19. f4 {[%clk 0:01:45.3]}
19... Nfg4 {[%clk 0:01:54.5]} 20. fxe5 {[%clk 0:01:06.6]} 20... dxe5 {[%clk
0:01:29.6]} 21. Rxf8+ {[%clk 0:01:01.8]} 21... Rxf8 {[%clk 0:01:27.9]} 22. Qd2
{[%clk 0:00:53.2]} 22... Nxe3 {[%clk 0:01:28.1]} 23. Qxe3 {[%clk 0:00:45.5]}
23... Bg5 {[%clk 0:01:25.9]} 24. Qc3 {[%clk 0:00:42.8]} 24... Bxc1 {[%clk
0:01:25.9]} 25. Qxc1 {[%clk 0:00:44.7]} 25... Qb6+ {[%clk 0:01:26.5]} 0-1

[Event "*** Titled Tuesday Blitz"]
[Site "Chess.com"]
[Date "2019.06.04"]
[Round "5"]
[White "jefferyx"]
[Black "MarianPetrov"]
[Result "1-0"]
[WhiteElo "2903"]
[BlackElo "2621"]
[TimeControl "180+2"]
[EndTime "14:04:27 PDT"]
[Termination "jefferyx won by resignation"]

1. d4 {[%clk 0:03:01.9]} 1... g6 {[%clk 0:03:00.3]} 2. e4 {[%clk 0:03:02.4]}
2... Bg7 {[%clk 0:03:01.4]} 3. Nf3 {[%clk 0:03:04.1]} 3... d6 {[%clk 0:03:01.7]}
4. Bd3 {[%clk 0:03:05.5]} 4... Nf6 {[%clk 0:02:58.7]} 5. O-O {[%clk 0:03:06.7]}
5... O-O {[%clk 0:02:59.5]} 6. Nbd2 {[%clk 0:03:07.6]} 6... c5 {[%clk 0:02:58]}
7. dxc5 {[%clk 0:03:05.3]} 7... dxc5 {[%clk 0:02:58.6]} 8. e5 {[%clk 0:03:06.9]}
8... Ng4 {[%clk 0:02:45.3]} 9. Nc4 {[%clk 0:03:06.2]} 9... Nc6 {[%clk
0:02:42.2]} 10. Bf4 {[%clk 0:02:58.1]} 10... b5 {[%clk 0:02:42.4]} 11. Be4
{[%clk 0:02:59]} 11... Bb7 {[%clk 0:02:15.2]} 12. Ncd2 {[%clk 0:03:00.1]} 12...
Qc7 {[%clk 0:02:04.1]} 13. Re1 {[%clk 0:02:54.5]} 13... Rad8 {[%clk 0:01:49.7]}
14. h3 {[%clk 0:02:54.9]} 14... Nh6 {[%clk 0:01:44.3]} 15. Bh2 {[%clk
0:02:53.4]} 15... Nf5 {[%clk 0:01:36.9]} 16. e6 {[%clk 0:02:46]} 16... Qb6
{[%clk 0:01:17.2]} 17. exf7+ {[%clk 0:02:46.6]} 17... Rxf7 {[%clk 0:01:18.3]}
18. Ng5 {[%clk 0:02:48]} 18... Rf6 {[%clk 0:01:18.4]} 19. c3 {[%clk 0:02:25.1]}
19... c4 {[%clk 0:01:18.6]} 20. Qe2 {[%clk 0:02:16.6]} 20... Bh6 {[%clk
0:01:12.2]} 21. Ndf3 {[%clk 0:02:14.6]} 21... Ng7 {[%clk 0:00:45]} 22. Rad1
{[%clk 0:02:12.4]} 22... Rff8 {[%clk 0:00:36.9]} 23. Bd5+ {[%clk 0:01:52.4]}
23... Kh8 {[%clk 0:00:33.5]} 24. Nf7+ {[%clk 0:01:49.2]} 24... Rxf7 {[%clk
0:00:34.1]} 25. Bxf7 {[%clk 0:01:51.1]} 25... Nf5 {[%clk 0:00:29.3]} 26. Ne5
{[%clk 0:01:42.9]} 26... Rf8 {[%clk 0:00:18.3]} 27. Nd7 {[%clk 0:01:41.5]} 1-0

[Event "*** Titled Tuesday Blitz"]
[Site "Chess.com"]
[Date "2019.06.04"]
[Round "5"]
[White "Aragon"]
[Black "FairChess_on_YouTube"]
[Result "0-1"]
[WhiteElo "2084"]
[BlackElo "3047"]
[TimeControl "180+2"]
[EndTime "14:04:27 PDT"]
[Termination "FairChess_on_YouTube won by resignation"]

1. e4 {[%clk 0:03:01.3]} 1... g6 {[%clk 0:03:01.9]} 2. d4 {[%clk 0:02:59.8]}
2... d6 {[%clk 0:03:03.1]} 3. Nc3 {[%clk 0:03:01.7]} 3... Bg7 {[%clk 0:03:03.6]}
4. Bc4 {[%clk 0:03:00]} 4... a6 {[%clk 0:03:01.6]} 5. Bb3 {[%clk 0:02:59]} 5...
Nc6 {[%clk 0:03:01.4]} 6. Nf3 {[%clk 0:02:55.5]} 6... Na5 {[%clk 0:02:57.9]} 7.
Bd5 {[%clk 0:02:44.5]} 7... Nf6 {[%clk 0:02:52.2]} 8. h3 {[%clk 0:02:40.3]} 8...
O-O {[%clk 0:02:51.9]} 9. Qe2 {[%clk 0:02:31.9]} 9... e6 {[%clk 0:02:38.4]} 10.
Bb3 {[%clk 0:02:25.7]} 10... b5 {[%clk 0:02:26.6]} 11. e5 {[%clk 0:02:17.1]}
11... Nd7 {[%clk 0:02:24.3]} 12. exd6 {[%clk 0:02:05.6]} 12... cxd6 {[%clk
0:02:22.8]} 13. Bg5 {[%clk 0:02:00.9]} 13... Qc7 {[%clk 0:02:14.3]} 14. Ne4
{[%clk 0:01:55.4]} 14... Nxb3 {[%clk 0:02:12.2]} 15. axb3 {[%clk 0:01:55.1]}
15... f5 {[%clk 0:02:07.8]} 16. Nc3 {[%clk 0:01:49.3]} 16... Nb6 {[%clk
0:02:01.5]} 17. h4 {[%clk 0:01:48.8]} 17... e5 {[%clk 0:02:00.4]} 18. O-O-O
{[%clk 0:01:18.3]} 18... e4 {[%clk 0:01:59.9]} 19. Nh2 {[%clk 0:01:17.1]} 19...
b4 {[%clk 0:01:58.9]} 20. Na4 {[%clk 0:01:16.7]} 20... Nxa4 {[%clk 0:01:48.9]}
21. bxa4 {[%clk 0:01:18.6]} 21... Bd7 {[%clk 0:01:49.8]} 22. h5 {[%clk
0:00:25.1]} 22... Bxa4 {[%clk 0:01:50.1]} 23. hxg6 {[%clk 0:00:26.1]} 23... hxg6
{[%clk 0:01:51.6]} 24. g4 {[%clk 0:00:26.6]} 24... Rac8 {[%clk 0:01:43.3]} 25.
Rd2 {[%clk 0:00:26.4]} 25... Qa5 {[%clk 0:01:38.3]} 26. gxf5 {[%clk 0:00:17.6]}
26... Bb5 {[%clk 0:01:38.5]} 0-1

[Event "*** Titled Tuesday Blitz"]
[Site "Chess.com"]
[Date "2019.06.04"]
[Round "5"]
[White "Anaiy"]
[Black "PNEPaul"]
[Result "0-1"]
[WhiteElo "1982"]
[BlackElo "1827"]
[TimeControl "180+2"]
[EndTime "14:04:27 PDT"]
[Termination "PNEPaul won by checkmate"]

1. d4 {[%clk 0:03:01.9]} 1... Nf6 {[%clk 0:03:00.4]} 2. c4 {[%clk 0:03:03.1]}
2... c5 {[%clk 0:03:01.2]} 3. d5 {[%clk 0:03:02.6]} 3... Ne4 {[%clk 0:03:02.3]}
4. Qc2 {[%clk 0:02:58.3]} 4... Qa5+ {[%clk 0:03:02.7]} 5. Nd2 {[%clk 0:02:52.7]}
5... f5 {[%clk 0:03:02.3]} 6. f3 {[%clk 0:02:46.5]} 6... Nd6 {[%clk 0:03:02.8]}
7. e4 {[%clk 0:02:40.7]} 7... fxe4 {[%clk 0:03:03.6]} 8. fxe4 {[%clk 0:02:41.7]}
8... g6 {[%clk 0:03:04.7]} 9. Nf3 {[%clk 0:02:33.5]} 9... Bg7 {[%clk 0:03:04.4]}
10. Bd3 {[%clk 0:02:30.9]} 10... Na6 {[%clk 0:03:05.3]} 11. O-O {[%clk
0:02:13.7]} 11... Nb4 {[%clk 0:03:01.7]} 12. Qb3 {[%clk 0:02:15.1]} 12... Nxd3
{[%clk 0:02:59.9]} 13. Qxd3 {[%clk 0:02:17]} 13... O-O {[%clk 0:03:00.4]} 14.
Nb3 {[%clk 0:02:11.3]} 14... Qc7 {[%clk 0:02:59.7]} 15. Bg5 {[%clk 0:01:51.3]}
15... Bxb2 {[%clk 0:02:25.6]} 16. Bxe7 {[%clk 0:01:19.9]} 16... Rf7 {[%clk
0:02:17.7]} 17. Rab1 {[%clk 0:00:56.5]} 17... Rxe7 {[%clk 0:02:03.5]} 18. Rxb2
{[%clk 0:00:57]} 18... Nf7 {[%clk 0:02:04.3]} 19. Re2 {[%clk 0:00:52.7]} 19...
d6 {[%clk 0:02:04.1]} 20. Rfe1 {[%clk 0:00:35.3]} 20... Bg4 {[%clk 0:02:02.5]}
21. h3 {[%clk 0:00:32.3]} 21... Bxf3 {[%clk 0:02:02.3]} 22. gxf3 {[%clk
0:00:31.8]} 22... Ne5 {[%clk 0:02:02.2]} 23. Qc3 {[%clk 0:00:25.6]} 23... Rf8
{[%clk 0:01:52.6]} 24. Nd2 {[%clk 0:00:17.3]} 24... Qd7 {[%clk 0:01:49.6]} 25.
Kg2 {[%clk 0:00:16.9]} 25... Rf4 {[%clk 0:01:46.5]} 26. Qe3 {[%clk 0:00:16.9]}
26... Ref7 {[%clk 0:01:45.6]} 27. Rf2 {[%clk 0:00:16.6]} 27... Rh4 {[%clk
0:01:40.2]} 28. Qg5 {[%clk 0:00:14.8]} 28... Qxh3+ {[%clk 0:01:39.3]} 29. Kg1
{[%clk 0:00:15.4]} 29... Qh1# {[%clk 0:01:39.2]} 0-1

[Event "*** Titled Tuesday Blitz"]
[Site "Chess.com"]
[Date "2019.06.04"]
[Round "5"]
[White "TristanCalistri"]
[Black "NMJeevanK"]
[Result "0-1"]
[WhiteElo "2257"]
[BlackElo "2433"]
[TimeControl "180+2"]
[EndTime "14:04:32 PDT"]
[Termination "NMJeevanK won by resignation"]

1. e4 {[%clk 0:03:01.9]} 1... e5 {[%clk 0:03:00.6]} 2. Nf3 {[%clk 0:03:02.4]}
2... Nc6 {[%clk 0:03:01.6]} 3. Bc4 {[%clk 0:03:03.4]} 3... Bc5 {[%clk
0:03:00.7]} 4. c3 {[%clk 0:03:04.2]} 4... Nf6 {[%clk 0:03:00.4]} 5. d3 {[%clk
0:03:05.2]} 5... d6 {[%clk 0:03:01.7]} 6. Bb3 {[%clk 0:03:05]} 6... h6 {[%clk
0:03:02.8]} 7. Nbd2 {[%clk 0:02:58.6]} 7... Bb6 {[%clk 0:03:04]} 8. Nc4 {[%clk
0:02:58]} 8... O-O {[%clk 0:03:04.2]} 9. a4 {[%clk 0:02:55.2]} 9... Be6 {[%clk
0:02:52.8]} 10. O-O {[%clk 0:02:55.9]} 10... Bxc4 {[%clk 0:02:50.6]} 11. Bxc4
{[%clk 0:02:56.5]} 11... a5 {[%clk 0:02:49.4]} 12. Re1 {[%clk 0:02:54.8]} 12...
Qd7 {[%clk 0:02:45.1]} 13. Bb5 {[%clk 0:02:38.4]} 13... Rae8 {[%clk 0:02:14.1]}
14. h3 {[%clk 0:02:07.8]} 14... d5 {[%clk 0:02:08.5]} 15. Qe2 {[%clk 0:02:02.3]}
15... Re6 {[%clk 0:01:55.7]} 16. Nh4 {[%clk 0:02:02.5]} 16... Qd8 {[%clk
0:01:25.1]} 17. Qf3 {[%clk 0:01:51.5]} 17... Nxe4 {[%clk 0:01:18.8]} 18. dxe4
{[%clk 0:01:50.8]} 18... Qxh4 {[%clk 0:01:19.7]} 19. g3 {[%clk 0:01:23.3]} 19...
Qxh3 {[%clk 0:00:41.9]} 20. Bf1 {[%clk 0:01:19.6]} 20... Rf6 {[%clk 0:00:41.7]}
21. Qxf6 {[%clk 0:01:16.2]} 21... Qxg3+ {[%clk 0:00:39.2]} 22. Kh1 {[%clk
0:01:14.9]} 22... Bxf2 {[%clk 0:00:37]} 0-1